[Event "Open NK Rapid 2025 bord 26-50"]
[Site "Helmond, Netherlands"]
[Date "2025.05.03"]
[Round "5.21"]
[White "Zhou, Yanyang"]
[Black "Teianu, Sabin"]
[Result "0-1"]
[TimeControl "15 min +5 sec increment"]
[WhiteFideId "40109739"]
[BlackFideId "1095846"]
[WhiteElo "1785"]
[BlackElo "2089"]

1. e4 {[%clk 00:15:08]} e6 {[%clk 00:15:09]} {[%emt 00:00:02]} 2. d4 {[%clk
00:15:11]} {[%emt 00:00:03]} d5 {[%clk 00:15:14]} 3. e5 {[%clk 00:15:15]} c5
{[%clk 00:15:18]} 4. c3 {[%clk 00:15:19]} {[%emt 00:00:01]} Nc6 {[%clk
00:15:22]} 5. Nf3 {[%clk 00:15:23]} Bd7 {[%clk 00:15:26]} {[%emt 00:00:01]} 6.
Be2 {[%clk 00:15:12]} {[%emt 00:00:16]} Nge7 {[%clk 00:15:24]} {[%emt
00:00:07]} 7. O-O {[%clk 00:15:07]} {[%emt 00:00:10]} Nf5 {[%clk 00:15:23]}
{[%emt 00:00:06]} 8. dxc5 {[%clk 00:15:02]} {[%emt 00:00:10]} Bxc5 {[%clk
00:15:24]} {[%emt 00:00:04]} 9. Bd3 {[%clk 00:14:59]} {[%emt 00:00:08]} Nh4
{[%clk 00:14:15]} {[%emt 00:01:15]} 10. Nbd2 {[%clk 00:14:52]} {[%emt
00:00:11]} Ng6 {[%clk 00:14:04]} {[%emt 00:00:16]} 11. Nb3 {[%clk 00:14:30]}
{[%emt 00:00:28]} Bb6 {[%clk 00:14:04]} {[%emt 00:00:05]} 12. Re1 {[%clk
00:14:14]} {[%emt 00:00:21]} Qc7 {[%clk 00:13:53]} {[%emt 00:00:15]} 13. Qe2
{[%clk 00:13:40]} {[%emt 00:00:39]} O-O-O {[%clk 00:12:51]} {[%emt 00:01:07]}
14. Nbd2 {[%clk 00:12:39]} {[%emt 00:01:06]} Nf4 {[%clk 00:12:37]} {[%emt
00:00:19]} 15. Qf1 {[%clk 00:12:15]} {[%emt 00:00:30]} Nxd3 {[%clk 00:12:25]}
{[%emt 00:00:17]} 16. Qxd3 {[%clk 00:12:16]} {[%emt 00:00:02]} f6 {[%clk
00:11:27]} {[%emt 00:01:05]} 17. Qe2 {[%clk 00:11:15]} {[%emt 00:01:06]} Rdf8
{[%clk 00:10:59]} {[%emt 00:00:32]} 18. exf6 {[%clk 00:10:29]} {[%emt
00:00:52]} gxf6 {[%clk 00:10:52]} {[%emt 00:00:12]} 19. Nb3 {[%clk 00:10:20]}
{[%emt 00:00:14]} e5 {[%emt 00:01:16]} 20. Be3 {[%clk 00:10:02]} {[%emt
00:00:21]} Bg4 {[%clk 00:08:00]} {[%emt 00:01:48]} 21. h3 {[%clk 00:09:41]}
{[%emt 00:00:25]} Bh5 {[%clk 00:07:02]} {[%emt 00:01:03]} 22. Bxb6 {[%clk
00:09:24]} {[%emt 00:00:22]} axb6 {[%clk 00:05:40]} {[%emt 00:01:27]} 23. Qc2
{[%clk 00:08:54]} {[%emt 00:00:35]} Qd7 {[%clk 00:05:23]} {[%emt 00:00:23]} 24.
Nbd2 {[%clk 00:07:47]} {[%emt 00:01:12]} Rhg8 {[%clk 00:05:13]} {[%emt
00:00:14]} 25. Kh2 {[%clk 00:07:40]} {[%emt 00:00:12]} Bxf3 {[%clk 00:04:03]}
{[%emt 00:01:14]} 26. Nxf3 {[%clk 00:07:38]} {[%emt 00:00:09]} e4 {[%clk
00:04:07]} {[%emt 00:00:01]} 27. Nd4 {[%clk 00:07:30]} {[%emt 00:00:13]} f5
{[%clk 00:02:52]} {[%emt 00:01:20]} 28. a4 {[%clk 00:06:50]} {[%emt 00:00:44]}
f4 {[%clk 00:01:32]} {[%emt 00:01:25]} 29. Nxc6 {[%clk 00:06:35]} {[%emt
00:00:21]} bxc6 {[%clk 00:01:25]} {[%emt 00:00:11]} 30. a5 {[%clk 00:06:38]}
{[%emt 00:00:02]} f3 {[%clk 00:01:10]} {[%emt 00:00:21]} 31. g3 {[%clk
00:06:38]} {[%emt 00:00:04]} Rf6 {[%clk 00:01:05]} {[%emt 00:00:10]} 32. axb6
{[%clk 00:06:12]} {[%emt 00:00:32]} Qxh3+ {[%clk 00:01:08]} {[%emt 00:00:02]}
33. Kxh3 {[%clk 00:06:10]} {[%emt 00:00:05]} Rh6# {[%clk 00:01:12]} {[%emt
00:00:02]} 0-1

[Event "Open NK Rapid 2025 bord 26-50"]
[Site "Helmond, Netherlands"]
[Date "2025.05.03"]
[Round "5.22"]
[White "Lalkota, Sai Pranav Tejas"]
[Black "Roebers, Jan"]
[Result "0-1"]
[TimeControl "15 min +5 sec increment"]
[WhiteFideId "1087690"]
[BlackFideId "1007815"]
[WhiteElo "1777"]
[BlackElo "2058"]

1. c4 Nf6 {[%clk 00:15:07]} {[%emt 00:00:02]} 2. g3 {[%clk 00:15:09]} {[%emt
00:00:01]} g6 {[%clk 00:15:11]} {[%emt 00:00:01]} 3. Bg2 {[%clk 00:15:13]}
{[%emt 00:00:01]} Bg7 {[%clk 00:15:15]} {[%emt 00:00:01]} 4. Nc3 {[%clk
00:15:17]} {[%emt 00:00:01]} O-O {[%clk 00:15:18]} {[%emt 00:00:02]} 5. d3
{[%clk 00:15:21]} c5 {[%clk 00:15:03]} {[%emt 00:00:19]} 6. e4 {[%clk
00:15:24]} {[%emt 00:00:02]} Nc6 {[%clk 00:15:01]} {[%emt 00:00:07]} 7. Nge2
{[%clk 00:15:28]} {[%emt 00:00:01]} d6 {[%clk 00:14:34]} {[%emt 00:00:32]} 8.
O-O {[%clk 00:15:24]} {[%emt 00:00:09]} a6 {[%clk 00:14:32]} {[%emt 00:00:07]}
9. f4 {[%clk 00:15:27]} {[%emt 00:00:02]} Rb8 {[%clk 00:14:35]} {[%emt
00:00:02]} 10. a3 {[%clk 00:15:27]} {[%emt 00:00:06]} Bd7 {[%clk 00:14:27]}
{[%emt 00:00:13]} 11. Nd5 {[%clk 00:15:29]} {[%emt 00:00:03]} b5 {[%clk
00:14:14]} {[%emt 00:00:17]} 12. Nec3 {[%clk 00:15:32]} {[%emt 00:00:02]} Ng4
{[%clk 00:13:48]} {[%emt 00:00:31]} 13. Qe2 {[%clk 00:15:01]} {[%emt 00:00:37]}
Nd4 {[%clk 00:13:41]} {[%emt 00:00:12]} 14. Qd1 {[%clk 00:14:57]} {[%emt
00:00:08]} bxc4 {[%clk 00:13:33]} {[%emt 00:00:13]} 15. dxc4 {[%clk 00:14:59]}
{[%emt 00:00:03]} Nb3 {[%clk 00:13:33]} {[%emt 00:00:05]} 16. Rb1 {[%clk
00:14:54]} {[%emt 00:00:10]} Bd4+ {[%clk 00:13:12]} {[%emt 00:00:26]} 17. Kh1
{[%clk 00:14:58]} Nf2+ {[%clk 00:13:10]} {[%emt 00:00:07]} 18. Rxf2 {[%clk
00:15:01]} {[%emt 00:00:03]} Bxf2 {[%clk 00:13:13]} {[%emt 00:00:01]} 19. Be3
{[%clk 00:15:02]} {[%emt 00:00:04]} Bxe3 {[%clk 00:13:09]} {[%emt 00:00:10]} 20.
Nxe3 {[%clk 00:15:05]} {[%emt 00:00:02]} Bc6 {[%clk 00:11:32]} {[%emt
00:01:41]} 21. Ned5 {[%clk 00:15:06]} {[%emt 00:00:04]} e6 {[%clk 00:11:16]}
{[%emt 00:00:21]} 22. Ne3 {[%clk 00:15:09]} {[%emt 00:00:02]} a5 {[%clk
00:10:39]} {[%emt 00:00:43]} 23. f5 {[%clk 00:15:03]} {[%emt 00:00:11]} exf5
{[%clk 00:10:32]} {[%emt 00:00:11]} 24. Ned5 {[%clk 00:15:05]} {[%emt
00:00:03]} fxe4 {[%clk 00:10:16]} {[%emt 00:00:22]} 25. Nxe4 {[%clk 00:15:05]}
{[%emt 00:00:04]} Bxd5 {[%clk 00:10:04]} {[%emt 00:00:17]} 26. Qxd5 {[%clk
00:15:08]} {[%emt 00:00:02]} Kg7 {[%clk 00:09:17]} {[%emt 00:00:52]} 27. Rf1
{[%clk 00:15:05]} {[%emt 00:00:08]} f5 {[%clk 00:09:04]} {[%emt 00:00:18]} 28.
Nf2 {[%clk 00:14:40]} {[%emt 00:00:29]} Nd4 {[%clk 00:08:58]} {[%emt 00:00:13]}
29. Nh3 {[%clk 00:14:39]} {[%emt 00:00:05]} Re8 {[%clk 00:08:45]} {[%emt
00:00:18]} 30. Rxf5 {[%clk 00:13:38]} {[%emt 00:01:07]} Nxf5 {[%clk 00:08:33]}
{[%emt 00:00:17]} 31. Qd2 {[%clk 00:13:15]} {[%emt 00:00:27]} Qf6 {[%clk
00:08:16]} {[%emt 00:00:22]} 0-1

[Event "Open NK Rapid 2025 bord 26-50"]
[Site "Helmond, Netherlands"]
[Date "2025.05.03"]
[Round "5.23"]
[White "Gotes Perez, Jaume"]
[Black "Zhang, Xiheng"]
[Result "0-1"]
[TimeControl "15 min +5 sec increment"]
[WhiteFideId "2276801"]
[BlackFideId "40102386"]
[WhiteElo "2005"]
[BlackElo "1778"]

1. e4 {[%clk 00:15:08]} {[%emt 00:00:02]} c5 {[%clk 00:15:04]} {[%emt
00:00:07]} 2. Nc3 {[%clk 00:15:04]} {[%emt 00:00:08]} e6 {[%clk 00:15:07]}
{[%emt 00:00:01]} 3. Nf3 {[%clk 00:14:40]} {[%emt 00:00:30]} Nc6 {[%clk
00:15:09]} {[%emt 00:00:03]} 4. d4 {[%clk 00:14:43]} {[%emt 00:00:02]} cxd4
{[%clk 00:15:13]} {[%emt 00:00:01]} 5. Nxd4 {[%clk 00:14:47]} {[%emt 00:00:02]}
Nf6 {[%clk 00:15:16]} {[%emt 00:00:01]} 6. Nxc6 {[%clk 00:14:13]} {[%emt
00:00:38]} bxc6 {[%clk 00:15:20]} {[%emt 00:00:02]} 7. e5 {[%clk 00:14:17]}
{[%emt 00:00:02]} Nd5 {[%clk 00:15:24]} {[%emt 00:00:01]} 8. Ne4 {[%clk
00:14:09]} {[%emt 00:00:12]} Qc7 {[%clk 00:15:28]} {[%emt 00:00:01]} 9. f4
{[%clk 00:13:54]} {[%emt 00:00:21]} Qb6 {[%clk 00:15:32]} {[%emt 00:00:01]} 10.
Qd2 {[%clk 00:11:08]} {[%emt 00:02:50]} Ba6 {[%clk 00:14:03]} {[%emt 00:01:34]}
11. Bxa6 {[%clk 00:09:59]} {[%emt 00:01:15]} Qxa6 {[%clk 00:14:02]} {[%emt
00:00:06]} 12. Nd6+ {[%clk 00:08:22]} {[%emt 00:01:41]} Bxd6 {[%clk 00:13:54]}
{[%emt 00:00:14]} 13. exd6 {[%clk 00:08:25]} {[%emt 00:00:02]} Qc4 {[%clk
00:12:46]} {[%emt 00:01:12]} 14. b3 {[%clk 00:07:15]} {[%emt 00:01:15]} Qe4+
{[%clk 00:12:40]} {[%emt 00:00:10]} 15. Qe2 {[%clk 00:07:19]} {[%emt 00:00:02]}
Qd4 {[%clk 00:12:35]} {[%emt 00:00:10]} 16. Qe5 {[%clk 00:06:49]} {[%emt
00:00:35]} Qxe5+ {[%clk 00:11:24]} {[%emt 00:01:17]} 17. fxe5 {[%clk 00:06:52]}
{[%emt 00:00:02]} f6 {[%clk 00:11:06]} {[%emt 00:00:22]} 18. exf6 {[%clk
00:05:46]} {[%emt 00:01:11]} Nxf6 {[%clk 00:10:52]} {[%emt 00:00:19]} 19. Bb2
{[%clk 00:05:28]} {[%emt 00:00:24]} O-O {[%clk 00:10:25]} {[%emt 00:00:31]} 20.
O-O {[%clk 00:03:41]} {[%emt 00:01:52]} Ne4 {[%clk 00:09:46]} {[%emt 00:00:43]}
21. Be5 {[%clk 00:03:09]} {[%emt 00:00:37]} Rf5 {[%clk 00:09:16]} {[%emt
00:00:35]} 22. Rxf5 {[%clk 00:02:41]} {[%emt 00:00:33]} exf5 {[%clk 00:09:21]}
23. Rd1 {[%clk 00:02:23]} {[%emt 00:00:23]} Re8 {[%clk 00:09:02]} {[%emt
00:00:24]} 24. Bd4 {[%clk 00:02:18]} {[%emt 00:00:11]} Kf7 {[%clk 00:08:34]}
{[%emt 00:00:33]} 25. a4 {[%clk 00:01:51]} {[%emt 00:00:32]} a6 {[%clk
00:08:32]} {[%emt 00:00:07]} 26. Bb2 {[%clk 00:01:32]} {[%emt 00:00:23]} g6
{[%clk 00:08:10]} {[%emt 00:00:27]} 27. Ba3 {[%clk 00:01:10]} {[%emt 00:00:28]}
Re5 {[%emt 00:00:25]} 28. c4 {[%clk 00:01:07]} Nf6 {[%clk 00:07:22]} {[%emt
00:00:41]} 29. Bb2 {[%clk 00:00:58]} {[%emt 00:00:14]} Re3 {[%clk 00:07:18]}
{[%emt 00:00:08]} 30. Bxf6 {[%clk 00:00:32]} {[%emt 00:00:31]} Kxf6 {[%clk
00:07:22]} {[%emt 00:00:01]} 31. Rb1 {[%clk 00:00:34]} {[%emt 00:00:03]} Rc3
{[%clk 00:06:00]} {[%emt 00:01:27]} 32. Re1 {[%clk 00:00:18]} {[%emt 00:00:21]}
Rxb3 {[%clk 00:05:28]} {[%emt 00:00:37]} 33. Re7 {[%clk 00:00:22]} Rb4 {[%clk
00:05:01]} {[%emt 00:00:33]} 34. Rxd7 {[%clk 00:00:14]} {[%emt 00:00:12]} Rxc4
{[%clk 00:04:40]} {[%emt 00:00:27]} 35. Rxh7 {[%clk 00:00:15]} {[%emt
00:00:04]} Rxa4 {[%clk 00:04:09]} {[%emt 00:00:35]} 36. Rc7 {[%clk 00:00:15]}
{[%emt 00:00:05]} Rc4 {[%clk 00:04:04]} {[%emt 00:00:11]} 37. Ra7 {[%clk
00:00:12]} {[%emt 00:00:08]} Ke6 {[%clk 00:03:56]} {[%emt 00:00:12]} 38. d7
{[%clk 00:00:15]} {[%emt 00:00:03]} Ke7 {[%clk 00:03:54]} {[%emt 00:00:07]} 39.
Kf2 {[%clk 00:00:15]} {[%emt 00:00:04]} Rd4 {[%clk 00:03:41]} {[%emt 00:00:18]}
40. Rxa6 {[%clk 00:00:16]} {[%emt 00:00:04]} Kxd7 {[%clk 00:03:45]} 41. Ra7+
{[%clk 00:00:17]} {[%emt 00:00:04]} Ke6 {[%clk 00:03:47]} {[%emt 00:00:02]} 42.
Rg7 {[%clk 00:00:20]} {[%emt 00:00:02]} Kf6 {[%clk 00:03:50]} {[%emt 00:00:03]}
43. Rc7 {[%clk 00:00:23]} {[%emt 00:00:01]} Rd6 {[%clk 00:03:52]} {[%emt
00:00:04]} 44. h4 {[%clk 00:00:21]} {[%emt 00:00:06]} Ke5 {[%clk 00:03:48]}
{[%emt 00:00:09]} 45. g3 {[%clk 00:00:18]} {[%emt 00:00:09]} Kd4 {[%clk
00:03:50]} {[%emt 00:00:03]} 46. Kf3 {[%clk 00:00:19]} {[%emt 00:00:04]} c5
{[%clk 00:03:53]} {[%emt 00:00:02]} 47. Kf4 {[%clk 00:00:22]} {[%emt 00:00:02]}
c4 {[%clk 00:03:52]} {[%emt 00:00:06]} 48. h5 {[%clk 00:00:11]} {[%emt
00:00:15]} gxh5 {[%clk 00:03:53]} {[%emt 00:00:04]} 49. Kxf5 {[%clk 00:00:14]}
{[%emt 00:00:02]} Rd5+ {[%clk 00:03:50]} {[%emt 00:00:08]} 50. Kg6 {[%clk
00:00:17]} {[%emt 00:00:03]} c3 {[%clk 00:03:52]} {[%emt 00:00:03]} 51. Re7
{[%clk 00:00:15]} {[%emt 00:00:06]} Kd3 {[%clk 00:03:53]} {[%emt 00:00:05]} 52.
Re1 {[%clk 00:00:18]} {[%emt 00:00:01]} c2 {[%clk 00:03:49]} {[%emt 00:00:10]}
53. Rh1 {[%clk 00:00:18]} {[%emt 00:00:04]} Kd2 {[%clk 00:03:48]} {[%emt
00:00:07]} 54. Rh2+ {[%clk 00:00:22]} {[%emt 00:00:01]} Kc3 {[%clk 00:03:52]}
{[%emt 00:00:01]} 55. Rh1 {[%clk 00:00:23]} {[%emt 00:00:03]} Kb2 {[%clk
00:03:56]} 56. Rh2 {[%clk 00:00:26]} {[%emt 00:00:01]} Kb1 {[%clk 00:04:01]}
{[%emt 00:00:01]} 0-1

[Event "Open NK Rapid 2025 bord 26-50"]
[Site "Helmond, Netherlands"]
[Date "2025.05.03"]
[Round "5.24"]
[White "Hylarides, Charlie Ronald"]
[Black "Husers, Yannic"]
[Result "1-0"]
[TimeControl "15 min +5 sec increment"]
[WhiteFideId "40105822"]
[BlackFideId "1043587"]
[WhiteElo "1774"]
[BlackElo "2002"]

1. d4 {[%clk 00:15:05]} Nf6 {[%clk 00:15:07]} {[%emt 00:00:04]} 2. Bg5 {[%clk
00:15:05]} {[%emt 00:00:05]} e6 {[%clk 00:15:06]} {[%emt 00:00:06]} 3. e4
{[%clk 00:14:57]} {[%emt 00:00:13]} Be7 {[%clk 00:15:03]} {[%emt 00:00:08]} 4.
e5 {[%clk 00:14:57]} {[%emt 00:00:04]} Nd5 {[%clk 00:14:57]} {[%emt 00:00:12]}
5. Bxe7 {[%clk 00:14:57]} {[%emt 00:00:05]} Nxe7 {[%clk 00:14:56]} {[%emt
00:00:06]} 6. Bd3 {[%clk 00:14:50]} {[%emt 00:00:12]} c5 {[%clk 00:14:17]}
{[%emt 00:00:44]} 7. dxc5 {[%clk 00:14:03]} {[%emt 00:00:52]} Qa5+ {[%clk
00:14:14]} {[%emt 00:00:08]} 8. Nc3 {[%clk 00:13:48]} {[%emt 00:00:20]} Qxc5
{[%clk 00:14:04]} {[%emt 00:00:14]} 9. Nf3 {[%clk 00:13:48]} {[%emt 00:00:05]}
Nbc6 {[%clk 00:13:23]} {[%emt 00:00:47]} 10. Ne4 {[%clk 00:13:00]} {[%emt
00:00:52]} Qa5+ {[%clk 00:13:18]} {[%emt 00:00:10]} 11. Qd2 {[%clk 00:12:24]}
{[%emt 00:00:41]} Qxd2+ {[%clk 00:13:06]} {[%emt 00:00:17]} 12. Kxd2 {[%clk
00:12:19]} {[%emt 00:00:10]} O-O {[%clk 00:12:30]} {[%emt 00:00:41]} 13. Nd6
{[%clk 00:10:51]} {[%emt 00:01:33]} Ng6 {[%clk 00:12:12]} {[%emt 00:00:23]} 14.
Rae1 {[%clk 00:09:33]} {[%emt 00:01:23]} Nf4 {[%clk 00:11:24]} {[%emt
00:00:53]} 15. Be4 {[%clk 00:05:42]} {[%emt 00:03:56]} Nxg2 {[%clk 00:11:16]}
{[%emt 00:00:13]} 16. Reg1 {[%clk 00:05:28]} {[%emt 00:00:19]} Nf4 {[%clk
00:11:15]} {[%emt 00:00:06]} 17. h4 {[%clk 00:04:47]} {[%emt 00:00:46]} Ng6
{[%clk 00:09:29]} {[%emt 00:01:52]} 18. Bxc6 {[%clk 00:04:06]} {[%emt
00:00:46]} bxc6 {[%clk 00:08:52]} {[%emt 00:00:42]} 19. h5 {[%clk 00:04:09]}
{[%emt 00:00:03]} Ne7 {[%clk 00:08:38]} {[%emt 00:00:18]} 20. h6 {[%clk
00:03:45]} {[%emt 00:00:29]} g6 {[%clk 00:08:28]} {[%emt 00:00:15]} 21. Ne4
{[%clk 00:03:31]} {[%emt 00:00:18]} Nd5 {[%clk 00:07:20]} {[%emt 00:01:14]} 22.
c4 {[%clk 00:03:09]} {[%emt 00:00:27]} f5 {[%clk 00:07:19]} {[%emt 00:00:06]}
23. Neg5 {[%clk 00:02:37]} {[%emt 00:00:37]} Ne7 {[%clk 00:07:00]} {[%emt
00:00:23]} 24. Nh3 {[%clk 00:01:11]} {[%emt 00:01:32]} c5 {[%clk 00:06:40]}
{[%emt 00:00:26]} 25. Nh4 {[%clk 00:00:47]} {[%emt 00:00:27]} Bb7 {[%clk
00:06:25]} {[%emt 00:00:21]} 26. Rh2 {[%clk 00:00:50]} {[%emt 00:00:02]} Kh8
{[%clk 00:06:18]} {[%emt 00:00:12]} 27. Nf4 {[%clk 00:00:18]} {[%emt 00:00:37]}
Rg8 {[%clk 00:05:53]} {[%emt 00:00:30]} 28. Nd3 {[%clk 00:00:18]} {[%emt
00:00:04]} Rac8 {[%clk 00:05:34]} {[%emt 00:00:25]} 29. Kc3 {[%clk 00:00:14]}
{[%emt 00:00:09]} g5 {[%clk 00:05:16]} {[%emt 00:00:24]} 30. Ng2 {[%clk
00:00:13]} {[%emt 00:00:04]} f4 {[%clk 00:05:10]} {[%emt 00:00:13]} 31. Nge1
{[%clk 00:00:07]} {[%emt 00:00:10]} Nf5 {[%clk 00:04:56]} {[%emt 00:00:18]} 32.
Rh5 {[%clk 00:00:06]} {[%emt 00:00:06]} Nd4 {[%clk 00:04:03]} {[%emt 00:00:59]}
33. Rgxg5 {[%clk 00:00:07]} {[%emt 00:00:04]} Rxg5 {[%clk 00:04:06]} {[%emt
00:00:02]} 34. Rxg5 {[%clk 00:00:11]} {[%emt 00:00:01]} Rf8 {[%clk 00:03:34]}
{[%emt 00:00:38]} 35. Nxc5 {[%clk 00:00:10]} {[%emt 00:00:05]} Bc6 {[%clk
00:03:38]} 36. Rg7 {[%clk 00:00:09]} {[%emt 00:00:05]} Nf5 {[%clk 00:03:34]}
{[%emt 00:00:09]} 37. Rg4 {[%clk 00:00:10]} {[%emt 00:00:04]} Nxh6 {[%clk
00:03:37]} {[%emt 00:00:02]} 38. Rh4 {[%clk 00:00:08]} {[%emt 00:00:06]} Kg7
{[%clk 00:03:38]} {[%emt 00:00:05]} 39. Ned3 {[%clk 00:00:11]} {[%emt
00:00:02]} f3 {[%clk 00:03:39]} {[%emt 00:00:04]} 40. Nf4 {[%clk 00:00:12]}
{[%emt 00:00:04]} Rf5 {[%clk 00:03:38]} {[%emt 00:00:07]} 41. Nh5+ {[%clk
00:00:10]} {[%emt 00:00:07]} Kg6 {[%clk 00:03:38]} {[%emt 00:00:04]} 42. Ng3
{[%clk 00:00:11]} {[%emt 00:00:04]} Rxe5 {[%clk 00:03:37]} {[%emt 00:00:06]} 43.
Nd3 {[%clk 00:00:15]} {[%emt 00:00:01]} Rg5 {[%clk 00:03:26]} {[%emt 00:00:16]}
44. Nf4+ {[%clk 00:00:19]} {[%emt 00:00:02]} Kg7 {[%clk 00:03:25]} {[%emt
00:00:05]} 45. Ngh5+ {[%clk 00:00:20]} {[%emt 00:00:05]} Kf7 {[%clk 00:03:19]}
{[%emt 00:00:10]} 46. Ng3 {[%clk 00:00:23]} {[%emt 00:00:01]} Nf5 {[%clk
00:03:17]} {[%emt 00:00:08]} 47. Rxh7+ {[%clk 00:00:26]} {[%emt 00:00:02]} Kg8
{[%clk 00:03:21]} 48. Rh1 {[%clk 00:00:29]} {[%emt 00:00:02]} Nxg3 {[%clk
00:03:24]} {[%emt 00:00:03]} 49. fxg3 {[%clk 00:00:33]} {[%emt 00:00:01]} f2
{[%clk 00:03:27]} {[%emt 00:00:02]} 50. Rf1 {[%clk 00:00:36]} {[%emt 00:00:02]}
Rxg3+ {[%clk 00:03:31]} 51. Kd2 {[%clk 00:00:39]} {[%emt 00:00:02]} Rf3 {[%clk
00:03:31]} {[%emt 00:00:05]} 52. Nd3 {[%clk 00:00:43]} {[%emt 00:00:01]} Rh3
{[%clk 00:03:19]} {[%emt 00:00:17]} 53. Rxf2 {[%clk 00:00:46]} {[%emt
00:00:02]} Kg7 {[%clk 00:03:23]} {[%emt 00:00:01]} 54. Ne5 {[%clk 00:00:45]}
{[%emt 00:00:06]} Be4 {[%clk 00:03:23]} {[%emt 00:00:05]} 55. Rf7+ {[%clk
00:00:45]} {[%emt 00:00:05]} Kg8 {[%clk 00:03:30]} {[%emt 00:00:05]} 56. Rxd7
{[%clk 00:00:50]} {[%emt 00:00:03]} Rh2+ {[%clk 00:03:33]} {[%emt 00:00:02]} 57.
Kc3 {[%clk 00:00:54]} a6 {[%clk 00:03:33]} {[%emt 00:00:05]} 58. Ng4 {[%clk
00:00:44]} {[%emt 00:00:15]} Rh3+ {[%clk 00:03:36]} {[%emt 00:00:02]} 59. Kd4
{[%clk 00:00:46]} {[%emt 00:00:03]} Rd3+ {[%clk 00:03:39]} {[%emt 00:00:02]} 60.
Kxe4 {[%clk 00:15:05]} {[%emt 00:00:06]} 1-0

[Event "Open NK Rapid 2025 bord 26-50"]
[Site "Helmond, Netherlands"]
[Date "2025.05.03"]
[Round "5.25"]
[White "Hoornstra, Hans"]
[Black "Rohatgi, Kushagra"]
[Result "0-1"]
[TimeControl "15 min +5 sec increment"]
[WhiteFideId "1036076"]
[BlackFideId "34603212"]
[WhiteElo "1976"]
[BlackElo "1774"]

1. e4 {[%clk 00:15:07]} {[%emt 00:00:01]} c6 {[%clk 00:15:09]} {[%emt
00:00:02]} 2. d4 {[%clk 00:15:10]} {[%emt 00:00:02]} d5 {[%clk 00:15:12]}
{[%emt 00:00:02]} 3. exd5 {[%clk 00:15:10]} {[%emt 00:00:05]} cxd5 {[%clk
00:15:15]} {[%emt 00:00:02]} 4. Bd3 {[%clk 00:15:07]} {[%emt 00:00:08]} Nc6
{[%clk 00:15:18]} {[%emt 00:00:03]} 5. c3 {[%clk 00:15:10]} {[%emt 00:00:01]}
Nf6 {[%clk 00:15:21]} {[%emt 00:00:02]} 6. h3 {[%clk 00:15:13]} {[%emt
00:00:02]} e5 {[%clk 00:15:24]} {[%emt 00:00:02]} 7. dxe5 {[%clk 00:15:06]}
{[%emt 00:00:12]} Nxe5 {[%clk 00:15:24]} {[%emt 00:00:04]} 8. Bb5+ {[%clk
00:14:44]} {[%emt 00:00:27]} Bd7 {[%clk 00:15:11]} {[%emt 00:00:18]} 9. Qa4
{[%clk 00:14:13]} {[%emt 00:00:36]} Nd3+ {[%clk 00:14:30]} {[%emt 00:00:46]} 10.
Kf1 {[%clk 00:08:50]} {[%emt 00:05:28]} Nxc1 {[%clk 00:14:10]} {[%emt
00:00:25]} 11. Na3 {[%clk 00:08:44]} {[%emt 00:00:10]} Bxa3 {[%clk 00:12:35]}
{[%emt 00:01:41]} 12. Rxc1 {[%clk 00:06:43]} {[%emt 00:02:06]} Be7 {[%clk
00:12:18]} {[%emt 00:00:22]} 13. Nf3 {[%clk 00:06:30]} {[%emt 00:00:18]} a6
{[%clk 00:11:52]} {[%emt 00:00:32]} 14. Bxd7+ {[%clk 00:06:29]} {[%emt
00:00:06]} Qxd7 {[%clk 00:11:53]} {[%emt 00:00:04]} 15. Qc2 {[%clk 00:05:43]}
{[%emt 00:00:50]} O-O {[%clk 00:11:29]} {[%emt 00:00:28]} 16. g3 {[%clk
00:05:46]} {[%emt 00:00:02]} Bd6 {[%clk 00:11:08]} {[%emt 00:00:27]} 17. Kg2
{[%clk 00:05:46]} {[%emt 00:00:05]} Rfe8 {[%clk 00:10:53]} {[%emt 00:00:21]} 18.
Rcd1 {[%clk 00:05:47]} {[%emt 00:00:03]} Rac8 {[%clk 00:10:08]} {[%emt
00:00:51]} 19. Rd2 {[%clk 00:05:35]} {[%emt 00:00:16]} Bc7 {[%clk 00:09:30]}
{[%emt 00:00:44]} 20. Rhd1 {[%clk 00:05:34]} {[%emt 00:00:05]} Bb6 {[%clk
00:08:47]} {[%emt 00:00:48]} 21. Qb3 {[%clk 00:03:09]} {[%emt 00:02:30]} Qc6
{[%clk 00:08:05]} {[%emt 00:00:47]} 22. Qb4 {[%clk 00:03:04]} {[%emt 00:00:10]}
Qc5 {[%clk 00:07:42]} {[%emt 00:00:28]} 23. Qh4 {[%clk 00:02:56]} {[%emt
00:00:12]} h6 {[%clk 00:06:16]} {[%emt 00:01:32]} 24. Rd4 {[%clk 00:02:36]}
{[%emt 00:00:25]} Re4 {[%clk 00:05:57]} {[%emt 00:00:24]} 25. Rxe4 {[%clk
00:02:34]} {[%emt 00:00:07]} Qxf2+ {[%clk 00:05:53]} {[%emt 00:00:09]} 26. Kh1
{[%clk 00:02:38]} Qxf3+ {[%clk 00:05:45]} {[%emt 00:00:12]} 0-1